fUSD/lending_fUSD_20241114
["ID","MTS","AMOUNT","RATE_DAILY","PERIOD"]
[342212547,1731585905318,-12500.0,0.0004075,120]
[342212548,1731585905390,-1303.31,0.00040794,120]
[342212549,1731585905465,-1303.31,0.00040794,120]
[342212550,1731585905535,-1303.31,0.00040794,120]
[342212551,1731585905603,-1303.31,0.00040794,120]
[342212552,1731585905671,-1303.31,0.00040794,120]
[342212553,1731585905741,-1303.31,0.00040794,120]
[342212554,1731585905812,-1303.31,0.00040794,120]
[342212555,1731585905884,-1303.31,0.00040794,120]
[342212556,1731585905959,-1303.31,0.00040794,120]
[342212557,1731585906032,-1303.31,0.00040794,120]
[342212558,1731585906104,-1303.31,0.00040794,120]
[342212559,1731585906175,-1303.31,0.00040794,120]
[342212560,1731585906247,-1303.31,0.00040794,120]
[342212561,1731585906319,-1303.31,0.00040794,120]
[342212562,1731585906388,-1303.31,0.00040794,120]
[342212563,1731585906455,-1303.31,0.00040794,120]
[342212564,1731585906519,-1303.31,0.00040794,120]
[342212565,1731585906584,-1303.31,0.00040794,120]
[342212566,1731585906648,-1303.31,0.00040794,120]
[342212567,1731585906715,-1303.31,0.00040794,120]
[342212568,1731585906779,-1303.31,0.00040794,120]
[342212569,1731585906844,-1303.31,0.00040794,120]
[342212570,1731585906916,-1303.31,0.00040794,120]
[342212571,1731585906988,-1303.40901827,0.00040794,120]
[342212572,1731585907051,-5466.19152057,0.000408,120]
[342212573,1731585907112,-1000.0,0.00040882,30]
[342212574,1731585907179,-8875.37444189,0.00040889,120]
[342212575,1731585907630,-2656.0800085,0.0004089,120]
[342212576,1731585907694,-300000.0,0.000409,30]
[342212577,1731585907760,-3000.0,0.0004098,39]
[342212578,1731585907825,-7104.28918738,0.00040998,120]
[342212579,1731585907887,-10983.3213175,0.00040999,120]
[342212580,1731585907959,-50000.0,0.00041,31]
[342212581,1731585908030,-50000.0,0.00041,41]
[342212582,1731585908096,-1000.0,0.00041,120]
[342212583,1731585908164,-1000.0,0.00041,120]
[342212584,1731585908230,-1000.0,0.00041,120]
[342212585,1731585908302,-1000.0,0.00041,120]
[342212586,1731585908375,-1000.0,0.00041,120]
[342212587,1731585908442,-1004.08,0.00041,120]
[342212588,1731585908508,-500.0,0.00041,120]
[342212589,1731585908573,-617.70112514,0.00041,120]
[342212590,1731585908641,-7000.0,0.00041,120]
[342212591,1731585908709,-150.0,0.00041,30]
[342212592,1731585908775,-20000.0,0.00041,120]
[342212593,1731585908840,-10859.64766161,0.00041,60]
[342212594,1731585908906,-3000.0,0.00041,120]
[342212595,1731585908972,-15000.0,0.00041,120]
[342212596,1731585909039,-1800.0,0.00041,42]
[342212597,1731585909103,-900.0,0.00041,120]
[342212598,1731585909169,-300.0,0.00041,30]
[342212599,1731585909233,-222.22222,0.00041,120]
[342212600,1731585909298,-10000.0,0.00041,120]
[342212601,1731585909366,-266.99,0.00041,120]
[342212602,1731585909434,-211.54510005,0.00041,30]
[342212603,1731585909498,-4049.3587739,0.00041,60]
[342212604,1731585909562,-500.0,0.00041,120]
[342212605,1731585909631,-500.0,0.00041,120]
[342212606,1731585909694,-500.0,0.00041,120]
[342212607,1731585909759,-500.0,0.00041,120]
[342212608,1731585909825,-500.0,0.00041,120]
[342212609,1731585909892,-500.0,0.00041,120]
[342212610,1731585909958,-500.0,0.00041,120]
[342212611,1731585910024,-500.0,0.00041,120]
[342212612,1731585910087,-500.0,0.00041,120]
[342212613,1731585910151,-500.0,0.00041,120]
[342212614,1731585910219,-500.0,0.00041,120]
[342212615,1731585910286,-500.0,0.00041,120]
[342212616,1731585910353,-500.0,0.00041,120]
[342212617,1731585910423,-500.0,0.00041,120]
[342212618,1731585910491,-500.0,0.00041,120]
[342212619,1731585910559,-500.0,0.00041,120]
[342212620,1731585910627,-500.0,0.00041,120]
[342212621,1731585910693,-500.0,0.00041,120]
[342212622,1731585910759,-500.0,0.00041,120]
[342212623,1731585910825,-500.0,0.00041,120]
[342212624,1731585910889,-500.0,0.00041,120]
[342212625,1731585910957,-500.0,0.00041,120]
[342212626,1731585911024,-500.0,0.00041,120]
[342212627,1731585911090,-500.0,0.00041,120]
[342212628,1731585911156,-500.0,0.00041,120]
[342212629,1731585911225,-500.0,0.00041,120]
[342212630,1731585911293,-500.0,0.00041,120]
[342212631,1731585911359,-500.0,0.00041,120]
[342212632,1731585911424,-500.0,0.00041,120]
[342212633,1731585911489,-500.0,0.00041,120]
[342212634,1731585911557,-500.0,0.00041,120]
[342212635,1731585911621,-500.0,0.00041,120]
[342212636,1731585911687,-500.0,0.00041,120]
[342212637,1731585911752,-500.0,0.00041,120]
[342212638,1731585911814,-500.0,0.00041,120]
[342212639,1731585911877,-500.0,0.00041,120]
[342212640,1731585911945,-500.0,0.00041,120]
[342212641,1731585912013,-500.0,0.00041,120]
[342212642,1731585912079,-500.0,0.00041,120]
[342212643,1731585912146,-500.0,0.00041,120]
[342212644,1731585912213,-500.0,0.00041,120]
[342212645,1731585912283,-500.0,0.00041,120]
[342212646,1731585912350,-500.0,0.00041,120]
[342212647,1731585912419,-500.0,0.00041,120]
[342212648,1731585912490,-500.0,0.00041,120]
[342212649,1731585912559,-500.0,0.00041,120]
[342212650,1731585912633,-500.0,0.00041,120]
[342212651,1731585912700,-500.0,0.00041,120]
[342212652,1731585912765,-500.0,0.00041,120]
[342212653,1731585912830,-500.0,0.00041,120]
[342212654,1731585912893,-500.0,0.00041,120]
[342212655,1731585912957,-500.0,0.00041,120]
[342212656,1731585913021,-500.0,0.00041,120]
[342212657,1731585913086,-500.0,0.00041,120]
[342212658,1731585913153,-500.0,0.00041,120]
[342212659,1731585913222,-500.0,0.00041,120]
[342212660,1731585913287,-500.0,0.00041,120]
[342212661,1731585913358,-500.0,0.00041,120]
[342212662,1731585913424,-500.0,0.00041,120]
[342212663,1731585913488,-500.0,0.00041,120]
[342212664,1731585913552,-500.0,0.00041,120]
[342212665,1731585913618,-500.0,0.00041,120]
[342212666,1731585913688,-500.0,0.00041,120]
[342212667,1731585913768,-500.0,0.00041,120]
[342212668,1731585913844,-500.0,0.00041,120]
[342212669,1731585913928,-500.0,0.00041,120]
[342212670,1731585914003,-500.0,0.00041,120]
[342212671,1731585914073,-500.0,0.00041,120]
[342212672,1731585914142,-500.0,0.00041,120]
[342212673,1731585914211,-500.0,0.00041,120]
[342212674,1731585914278,-500.0,0.00041,120]
[342212675,1731585914347,-500.0,0.00041,120]
[342212676,1731585914420,-500.0,0.00041,120]
[342212677,1731585914487,-500.0,0.00041,120]
[342212678,1731585914848,-500.0,0.00041,120]
[342212679,1731585914920,-558.0,0.00041,120]
[342212680,1731585914989,-500.0,0.00041,120]
[342212681,1731585915056,-500.0,0.00041,120]
[342212682,1731585915121,-500.0,0.00041,120]
[342212683,1731585915185,-500.0,0.00041,120]
[342212684,1731585915251,-500.0,0.00041,120]
[342212685,1731585915314,-500.0,0.00041,120]
[342212686,1731585915377,-500.0,0.00041,120]
[342212687,1731585915441,-500.0,0.00041,120]
[342212688,1731585915506,-500.0,0.00041,120]
[342212689,1731585915568,-713.0,0.00041,120]
[342212690,1731585915633,-1861036.54428398,0.00041,120]
[342212691,1731585953123,-200.0,8.2e-05,2]
[342212692,1731585953144,-782.05924679,8.219e-05,2]
[342212694,1731586150517,-1818.36,8.219e-05,2]
[342212695,1731586150545,-163.38,8.788e-05,2]
[342212696,1731586150567,-250.0,8.793e-05,2]
[342212697,1731586150588,-1852.42,8.794e-05,2]
[342212698,1731586150613,-250.0,8.797e-05,2]
[342212699,1731586150634,-1000.0,8.8e-05,2]
[342212700,1731586150655,-300.0,8.811e-05,2]
[342212701,1731586150677,-160.0,8.812e-05,2]
[342212702,1731586150699,-1313.27873,8.812e-05,2]
[342212703,1731586162107,-10131.03899226,8.812e-05,2]
[342212704,1731586169097,-12244.821484,8.812e-05,2]
[342212709,1731586232337,-210.86079374,8.812e-05,2]
[342212710,1731586232347,-300.0,9.6e-05,2]
[342212711,1731586232357,-176.18,9.708e-05,2]
[342212712,1731586232366,-176.18,9.71e-05,2]
[342212713,1731586232376,-176.18,9.713e-05,2]
[342212714,1731586232386,-176.18,9.715e-05,2]
[342212715,1731586232395,-176.18,9.718e-05,2]
[342212716,1731586232405,-176.18,9.72e-05,2]
[342212717,1731586232415,-176.18,9.723e-05,2]
[342212718,1731586232428,-176.18,9.725e-05,2]
[342212719,1731586232437,-176.18,9.728e-05,2]
[342212720,1731586232447,-176.18,9.73e-05,2]
[342212721,1731586232458,-176.18,9.733e-05,2]
[342212722,1731586232467,-176.18,9.736e-05,2]
[342212723,1731586232477,-176.18,9.738e-05,2]
[342212724,1731586232487,-176.18,9.741e-05,2]
[342212725,1731586232496,-176.18,9.743e-05,2]
[342212726,1731586232507,-176.18,9.746e-05,2]
[342212727,1731586232517,-176.18,9.748e-05,2]
[342212728,1731586232527,-176.18,9.751e-05,2]
[342212729,1731586232538,-176.18,9.753e-05,2]
[342212730,1731586232550,-176.18,9.756e-05,2]
[342212731,1731586232560,-1160.0,9.881e-05,2]
[342212732,1731586232571,-13639.0,9.881e-05,2]
[342212733,1731586232582,-5933.0,9.881e-05,2]
[342212734,1731586232593,-244.724,9.881e-05,2]
[342212735,1731586232602,-1091.0,9.881e-05,2]
[342212736,1731586232611,-300.0,9.899e-05,2]
[342212737,1731586232619,-765.0705,9.9e-05,2]
[342212738,1731586232629,-303.03593494,9.9e-05,2]
[342212739,1731586232655,-3209.87551476,9.9e-05,2]
[342212740,1731586232667,-96487.0885503,9.9e-05,2]
[342212741,1731586232678,-337.49650544,9.9e-05,2]
[342212742,1731586232687,-200.0,9.9e-05,2]
[342212743,1731586232697,-631.6596,9.9e-05,2]
[342212744,1731586232706,-200.0,9.9e-05,2]
[342212745,1731586232715,-1000.0,9.9e-05,2]
[342212746,1731586232724,-160.0,9.913e-05,2]
[342212747,1731586232733,-500.0,9.95e-05,2]
[342212748,1731586232742,-500.0,9.95e-05,2]
[342212749,1731586232751,-500.0,9.95e-05,2]
[342212750,1731586232761,-500.0,9.95e-05,2]
[342212751,1731586232771,-466.8924,9.95e-05,2]
[342212753,1731586232780,-1000.0,9.95e-05,2]
[342212755,1731586232789,-1000.0,9.95e-05,2]
[342212756,1731586232798,-970.4488,9.95e-05,2]
[342212757,1731586232807,-501.58749823,9.973e-05,2]
[342212758,1731586232815,-271.92664461,9.973e-05,2]
[342212763,1731586232854,-228.07335539,9.973e-05,2]
[342212765,1731586232864,-435.88322635,9.973e-05,2]
[342212766,1731586232883,-64.11677365,9.973e-05,2]
[342212767,1731586232892,-151.27605965,9.999e-05,2]
[342212768,1731586232901,-1657.08379984,9.999e-05,2]
[342212769,1731586232909,-13367.90785233,0.0001,2]
[342212784,1731586238660,-585.35314858,0.0001,2]
[342212785,1731586238673,-1829.62,0.0001,2]
[342212786,1731586238688,-2782416.80810616,0.0001,2]
[342212788,1731586238741,-2568.76345977,0.0001,2]
[342212789,1731586238755,-2599.54072712,0.0001,2]
[342212790,1731586238768,-4231.49009801,0.0001,2]
[342212791,1731586238780,-6220.9570429,0.0001,2]
[342212792,1731586238835,-176987.48490188,0.0001,2]
[342212793,1731586238847,-24861825.5619326,0.0001,2]
[342212794,1731586238859,-2778.96387288,0.0001,2]
[342212795,1731586238876,-83667.56269327,0.0001,2]
[342212853,1731586240297,-2101.2267869,0.0001,2]
[342212854,1731586240406,-1135.71798404,0.0001,2]
[342212855,1731586240420,-24365.3160084,0.0001,2]
[342212856,1731586240527,-3269.13,0.0001,2]
[342212857,1731586240555,-5854.85553628,0.0001,2]
[342212858,1731586240600,-305.3069381,0.0001,2]
[342212859,1731586240613,-974.57739223,0.0001,2]
[342212894,1731586244212,-828.54189992,9.999e-05,2]
[342212895,1731586244222,-12743.40706534,0.0001,2]
[342212896,1731586244239,-1186.12547293,0.0001,2]
[342212897,1731586244252,-358684.80752335,0.0001,2]
[342212898,1731586244272,-137376.00000001,0.0001,2]
[342212899,1731586244284,-1103.3017111,0.0001,2]
[342212900,1731586244295,-4557.94037863,0.0001,2]
[342212901,1731586244307,-8957.9949489,0.0001,2]
[342212902,1731586244319,-7558.95700008,0.0001,2]
[342212903,1731586244331,-2380.53736714,0.0001,2]
[342212904,1731586244342,-2666.88334154,0.0001,2]
[342212905,1731586244363,-11964.5861733,0.0001,2]
[342212906,1731586244374,-2821.9145403,0.0001,2]
[342212907,1731586244400,-7779.88650742,0.0001,2]
[342212908,1731586244419,-125442.99521407,0.0001,2]
[342212914,1731586246252,-2880.77187121,0.0001,2]
[342212915,1731586246308,-432.09496654,0.0001,2]
[342212916,1731586246319,-1919.57705919,0.0001,2]
[342212917,1731586246417,-5212.715,0.0001,2]
[342212918,1731586246428,-31946.13890997,0.0001,2]
[342212919,1731586246442,-3877.36932982,0.0001,2]
[342212920,1731586246453,-14872.27539215,0.0001,2]
[342212921,1731586246473,-891.30161446,0.0001,2]
[342212922,1731586246484,-1320.45,0.0001,2]
[342212923,1731586246495,-1185.57,0.0001,2]
[342212924,1731586246506,-573.27155235,0.0001,2]
[342212925,1731586246517,-313.06330969,0.0001,2]
[342212958,1731586559269,221.24429934,7.062e-05,2]
[342212959,1731586561642,-188.16570066,7.062e-05,2]
[342212960,1731586563229,-150.0,7.062e-05,2]
[342212961,1731586570766,-150.0,7.062e-05,2]
[342212962,1731586570933,-150.0,7.062e-05,2]
[342212963,1731586570997,-150.0,7.062e-05,2]
[342212964,1731586571118,-80.59,7.062e-05,2]
[342212969,1731586793949,-162.45310665,8.219e-05,2]
[342212970,1731586794727,-162.51844395,8.219e-05,2]
[342212984,1731586922494,-91227.61662027,0.00034911,120]
[342212985,1731586922558,-1201.76455742,0.00034911,120]
[342212986,1731586922619,-2347.83,0.00034911,120]
[342212987,1731586922679,-848.94,0.00034911,120]
[342212988,1731586922739,-500.0,0.00034911,120]
[342212989,1731586922801,-1528.72,0.00034911,120]
[342212990,1731586922862,-500.0,0.00034911,120]
[342212991,1731586922924,-2172.49,0.00034911,120]
[342212992,1731586922985,-609.15552531,0.00034911,120]
[342212993,1731586923049,-1057.03,0.00034911,120]
[342212994,1731586923120,-1816.46,0.00034911,120]
[342212995,1731586923185,-2347.83,0.00034911,120]
[342212996,1731586923256,-99223.59,0.00034911,120]
[342212997,1731586923323,-848.94,0.00034911,120]
[342212998,1731586923402,-4265.48,0.00034911,120]
[342212999,1731586923488,-500.0,0.00034911,120]
[342213000,1731586923554,-525.61317435,0.00034911,120]
[342213001,1731586923618,-1528.72,0.00034911,120]
[342213002,1731586923683,-1057.03,0.00034911,120]
[342213003,1731586923750,-1816.46,0.00034911,120]
[342213004,1731586923818,-2347.83,0.00034911,120]
[342213005,1731586923889,-99223.59,0.00034911,120]
[342213006,1731586923959,-1110.72,0.00034911,120]
[342213007,1731586924036,-848.94,0.00034911,120]
[342213008,1731586924102,-4265.48,0.00034911,120]
[342213009,1731586924165,-500.0,0.00034911,120]
[342213010,1731586924231,-2172.49,0.00034911,120]
[342213011,1731586924297,-1528.72,0.00034911,120]
[342213012,1731586924364,-500.0,0.00034911,120]
[342213013,1731586924430,-1057.03,0.00034911,120]
[342213014,1731586924496,-2347.83,0.00034911,120]
[342213015,1731586924561,-1110.72,0.00034911,120]
[342213016,1731586924627,-1816.46,0.00034911,120]
[342213017,1731586924690,-99223.59,0.00034911,120]
[342213018,1731586924753,-4265.48,0.00034911,120]
[342213019,1731586924815,-500.0,0.00034911,120]
[342213020,1731586924876,-848.94,0.00034911,120]
[342213021,1731586924942,-1528.72,0.00034911,120]
[342213022,1731586925005,-2172.49,0.00034911,120]
[342213023,1731586925068,-1057.03,0.00034911,120]
[342213024,1731586925128,-500.0,0.00034911,120]
[342213025,1731586925188,-1816.46,0.00034911,120]
[342213026,1731586925252,-2347.83,0.00034911,120]
[342213027,1731586925314,-99223.59,0.00034911,120]
[342213028,1731586925377,-500.0,0.00034911,120]
[342213029,1731586925439,-1110.72,0.00034911,120]
[342213030,1731586925502,-1528.72,0.00034911,120]
[342213031,1731586925565,-4265.48,0.00034911,120]
[342213032,1731586925629,-2172.49,0.00034911,120]
[342213033,1731586925700,-848.94,0.00034911,120]
[342213034,1731586925768,-2347.97088774,0.00034911,120]
[342213035,1731586925832,-99223.59,0.00034911,120]
[342213036,1731586925894,-1816.46,0.00034911,120]
[342213037,1731586925956,-1057.03,0.00034911,120]
[342213038,1731586926024,-500.0,0.00034911,120]
[342213039,1731586926089,-500.0,0.00034911,120]
[342213040,1731586926155,-1110.72,0.00034911,120]
[342213041,1731586926216,-1528.72,0.00034911,120]
[342213042,1731586926280,-4265.48,0.00034911,120]
[342213043,1731586926341,-2172.49,0.00034911,120]
[342213044,1731586926402,-848.94,0.00034911,120]
[342213045,1731586926465,-99223.59,0.00034911,120]
[342213046,1731586926527,-500.0,0.00034911,120]
[342213047,1731586926590,-500.0,0.00034911,120]
[342213048,1731586926650,-1528.72,0.00034911,120]
[342213049,1731586926709,-500.0,0.00034911,120]
[342213050,1731586926777,-4265.48,0.00034911,120]
[342213051,1731586926840,-99223.59,0.00034911,120]
[342213052,1731586926908,-848.94,0.00034911,120]
[342213053,1731586926968,-500.0,0.00034911,120]
[342213054,1731586927032,-1528.72,0.00034911,120]
[342213055,1731586927093,-974.66,0.00034911,120]
[342213056,1731586927154,-4265.48,0.00034911,120]
[342213057,1731586927215,-500.0,0.00034911,120]
[342213058,1731586927278,-500.0,0.00034911,120]
[342213059,1731586927340,-1110.72,0.00034911,120]
[342213060,1731586927401,-2172.49,0.00034911,120]
[342213061,1731586927466,-99223.59,0.00034911,120]
[342213062,1731586927534,-1528.72,0.00034911,120]
[342213063,1731586927597,-500.0,0.00034911,120]
[342213064,1731586927661,-848.94,0.00034911,120]
[342213065,1731586927730,-4265.48,0.00034911,120]
[342213066,1731586927793,-1816.46,0.00034911,120]
[342213067,1731586927855,-500.0,0.00034911,120]
[342213068,1731586927918,-500.0,0.00034911,120]
[342213069,1731586927990,-1065.99,0.00034911,120]
[342213070,1731586928054,-2172.63626505,0.00034911,120]
[342213071,1731586928117,-1110.72,0.00034911,120]
[342213072,1731586928180,-1528.72,0.00034911,120]
[342213073,1731586928243,-99223.59,0.00034911,120]
[342213074,1731586928314,-500.0,0.00034911,120]
[342213075,1731586928378,-4265.48,0.00034911,120]
[342213076,1731586928444,-500.0,0.00034911,120]
[342213077,1731586928508,-848.94,0.00034911,120]
[342213078,1731586928574,-1816.46,0.00034911,120]
[342213079,1731586928982,-500.0,0.00034911,120]
[342213080,1731586929061,-974.66,0.00034911,120]
[342213081,1731586929124,-1065.99,0.00034911,120]
[342213082,1731586929185,-1528.72,0.00034911,120]
[342213083,1731586929249,-1110.72,0.00034911,120]
[342213084,1731586929312,-500.0,0.00034911,120]
[342213085,1731586929372,-500.0,0.00034911,120]
[342213086,1731586929431,-99223.59,0.00034911,120]
[342213087,1731586929496,-1816.46,0.00034911,120]
[342213088,1731586929554,-848.94,0.00034911,120]
[342213089,1731586929614,-500.0,0.00034911,120]
[342213090,1731586929669,-1065.99,0.00034911,120]
[342213091,1731586929729,-1110.72,0.00034911,120]
[342213092,1731586929788,-1528.72,0.00034911,120]
[342213093,1731586929846,-974.66,0.00034911,120]
[342213094,1731586929904,-321.47800127,0.00034911,120]
[342213095,1731586929962,-99223.59,0.00034911,120]
[342213096,1731586930024,-4265.48,0.00034911,120]
[342213097,1731586930081,-848.94,0.00034911,120]
[342213098,1731586930138,-500.0,0.00034911,120]
[342213100,1731586930197,-1816.46,0.00034911,120]
[342213101,1731586930260,-500.0,0.00034911,120]
[342213102,1731586930319,-1065.99,0.00034911,120]
[342213103,1731586930383,-1110.72,0.00034911,120]
[342213104,1731586930446,-1528.72,0.00034911,120]
[342213105,1731586930513,-974.66,0.00034911,120]
[342213106,1731586930577,-99223.59,0.00034911,120]
[342213107,1731586930638,-848.94,0.00034911,120]
[342213108,1731586930699,-4265.48,0.00034911,120]
[342213109,1731586930758,-500.0,0.00034911,120]
[342213110,1731586930817,-1816.46,0.00034911,120]
[342213111,1731586930879,-500.0,0.00034911,120]
[342213112,1731586930941,-1065.99,0.00034911,120]
[342213113,1731586931005,-1110.72,0.00034911,120]
[342213114,1731586931068,-1528.78804047,0.00034911,120]
[342213115,1731586931136,-974.66,0.00034911,120]
[342213116,1731586931204,-99223.59,0.00034911,120]
[342213117,1731586931267,-849.1,0.00034911,120]
[342213118,1731586931329,-1065.99,0.00034911,120]
[342213119,1731586931392,-500.0,0.00034911,120]
[342213120,1731586931455,-4265.48,0.00034911,120]
[342213121,1731586931521,-1110.72,0.00034911,120]
[342213122,1731586931586,-974.79003515,0.00034911,120]
[342213123,1731586931651,-1816.46,0.00034911,120]
[342213124,1731586931716,-99223.59,0.00034911,120]
[342213125,1731586931787,-1065.99,0.00034911,120]
[342213126,1731586931847,-500.0,0.00034911,120]
[342213127,1731586931903,-4265.48,0.00034911,120]
[342213128,1731586931958,-500.0,0.00034911,120]
[342213129,1731586932009,-1110.72,0.00034911,120]
[342213130,1731586932062,-1816.46,0.00034911,120]
[342213131,1731586932119,-99223.77412316,0.00034911,120]
[342213132,1731586932173,-1065.99,0.00034911,120]
[342213133,1731586932229,-4265.48,0.00034911,120]
[342213134,1731586932284,-1110.72,0.00034911,120]
[342213135,1731586932345,-459.15594938,0.00034911,120]
[342213136,1731586932405,-1816.46,0.00034911,120]
[342213137,1731586932467,-1065.99,0.00034911,120]
[342213138,1731586932527,-4265.48,0.00034911,120]
[342213139,1731586932588,-1057.03,0.00034911,120]
[342213140,1731586932648,-1110.72,0.00034911,120]
[342213141,1731586932710,-1816.46,0.00034911,120]
[342213142,1731586932772,-1065.99,0.00034911,120]
[342213143,1731586932830,-1057.03,0.00034911,120]
[342213144,1731586932889,-1110.72,0.00034911,120]
[342213145,1731586932948,-500.0,0.00034911,120]
[342213146,1731586933010,-4265.48,0.00034911,120]
[342213147,1731586933072,-1816.46,0.00034911,120]
[342213148,1731586933133,-1065.99,0.00034911,120]
[342213149,1731586933195,-500.0,0.00034911,120]
[342213150,1731586933257,-4265.48,0.00034911,120]
[342213151,1731586933316,-1816.46,0.00034911,120]
[342213152,1731586933379,-1110.72,0.00034911,120]
[342213153,1731586933439,-500.0,0.00034911,120]
[342213154,1731586933499,-568.21872828,0.00034911,120]
[342213155,1731586933558,-4265.48,0.00034911,120]
[342213156,1731586933619,-1816.46,0.00034911,120]
[342213157,1731586933678,-1110.72,0.00034911,120]
[342213158,1731586933737,-266.74424024,0.00034911,120]
[342213159,1731586933796,-4265.48,0.00034911,120]
[342213160,1731586933855,-1816.59376496,0.00034911,120]
[342213161,1731586933916,-4265.48,0.00034911,120]
[342213162,1731586933978,-1224.31,0.00034911,120]
[342213163,1731586934041,-1110.72,0.00034911,120]
[342213164,1731586934101,-4265.48,0.00034911,120]
[342213165,1731586934161,-1224.31,0.00034911,120]
[342213166,1731586934218,-1110.72,0.00034911,120]
[342213167,1731586934285,-4265.48,0.00034911,120]
[342213168,1731586934341,-1065.99,0.00034911,120]
[342213169,1731586934400,-1286.36,0.00034911,120]
[342213170,1731586934458,-1224.31,0.00034911,120]
[342213171,1731586934517,-1110.72,0.00034911,120]
[342213172,1731586934587,-4265.56433644,0.00034911,120]
[342213173,1731586934649,-1286.36,0.00034911,120]
[342213174,1731586934708,-1065.99,0.00034911,120]
[342213175,1731586934764,-557.03,0.00034911,120]
[342213176,1731586934820,-1224.31,0.00034911,120]
[342213177,1731586934879,-1110.72,0.00034911,120]
[342213178,1731586934944,-1286.36,0.00034911,120]
[342213179,1731586935009,-1065.99,0.00034911,120]
[342213180,1731586935073,-557.03,0.00034911,120]
[342213181,1731586935137,-1224.31,0.00034911,120]
[342213182,1731586935203,-7944.38,0.00034911,120]
[342213183,1731586935267,-500.0,0.00034911,120]
[342213184,1731586935743,-1286.36,0.00034911,120]
[342213185,1731586935803,-1065.99,0.00034911,120]
[342213186,1731586935861,-557.03,0.00034911,120]
[342213187,1731586935919,-1110.72,0.00034911,120]
[342213188,1731586935978,-1224.31,0.00034911,120]
[342213189,1731586936042,-7944.38,0.00034911,120]
[342213190,1731586936098,-500.0,0.00034911,120]
[342213191,1731586936153,-815.08,0.00034911,120]
[342213192,1731586936210,-500.0,0.00034911,120]
[342213193,1731586936267,-1286.36,0.00034911,120]
[342213194,1731586936331,-1065.99,0.00034911,120]
[342213195,1731586936392,-557.03,0.00034911,120]
[342213196,1731586936452,-1110.72,0.00034911,120]
[342213197,1731586936513,-1015.78,0.00034911,120]
[342213198,1731586936575,-2872.56,0.00034911,120]
[342213199,1731586936637,-7944.38,0.00034911,120]
[342213200,1731586936698,-500.0,0.00034911,120]
[342213201,1731586936758,-1224.31,0.00034911,120]
[342213202,1731586936817,-500.0,0.00034911,120]
[342213203,1731586936879,-1065.99,0.00034911,120]
[342213204,1731586936937,-500.0,0.00034911,120]
[342213205,1731586936995,-557.03,0.00034911,120]
[342213206,1731586937052,-1110.85093204,0.00034911,120]
[342213207,1731586937110,-2872.56,0.00034911,120]
[342213208,1731586937167,-7944.38,0.00034911,120]
[342213209,1731586937225,-349.0745242,0.00034911,120]
[342213210,1731586937284,-1015.78,0.00034911,120]
[342213211,1731586937339,-1224.31,0.00034911,120]
[342213212,1731586937394,-500.0,0.00034911,120]
[342213213,1731586937450,-1065.99,0.00034911,120]
[342213214,1731586937506,-1286.36,0.00034911,120]
[342213215,1731586937560,-500.0,0.00034911,120]
[342213216,1731586937616,-557.03,0.00034911,120]
[342213217,1731586937675,-2872.56,0.00034911,120]
[342213218,1731586937735,-1015.78,0.00034911,120]
[342213219,1731586937792,-1224.31,0.00034911,120]